bitfinex-derivatives/quotes_ETHF0:USTF0_20250602
["timestamp","ask_amount","ask_price","bid_price","bid_amount"]
[1748856881378,20.53956,2490.6,2490.5,0.80268]
[1748856881578,0.80268,2490.5,2490.4,2.8556]
[1748856881878,0.80268,2490.5,2490.4,1.49791]
[1748856883080,19.87568,2490.5,2490.4,1.49791]
[1748856883382,19.87568,2490.5,2490.4,0.6952]
[1748856883779,0.80271,2490.4,2490.3,0.80273]
[1748856883980,0.80271,2490.4,2490.3,2.04923989]
[1748856884380,0.80271,2490.4,2490.3,2.04919741]
[1748856884591,3.21383355,2490.7,2490.3,3.25332741]
[1748856884884,19.87467,2490.6,2490.5,0.80265]
[1748856885185,0.80267,2490.6,2490.5,0.80265]
[1748856885684,4.01647355,2490.7,2490.6,0.80265]
[1748856885879,4.01647355,2490.7,2490.3,4.332]
[1748856885880,3.21383355,2490.7,2490.3,4.332]
[1748856886080,0.80267,2490.6,2490.5,0.80266]
[1748856887993,4.01647355,2490.7,2490.5,0.80266]
[1748856888381,3.21383355,2490.7,2490.6,0.80265]
[1748856888881,3.21383355,2490.7,2490.3,6.33886]
[1748856888882,0.80268,2490.5,2490.4,0.8027]
[1748856889081,0.80268,2490.5,2490.4,2.05011117]
[1748856889487,1.48208,2490.5,2490.4,2.05011117]
[1748856890388,1.48208,2490.5,2490.4,1.24741117]
[1748856890589,1.48208,2490.5,2490.4,2.05012117]
[1748856890785,0.6794,2490.5,2490.4,2.05012117]
[1748856891296,1.48208,2490.5,2490.4,2.05012117]
[1748856891489,3.21383355,2490.7,2490.4,2.05012117]
[1748856891490,3.21383355,2490.7,2490.6,0.80265]
[1748856891790,3.21383355,2490.7,2490.6,2.05006117]
[1748856891979,4.01646355,2490.7,2490.6,1.24741117]
[1748856892281,4.01646355,2490.7,2490.6,0.80265]
[1748856892483,4.01646355,2490.7,2490.6,2.05311815]
[1748856892893,3.21383355,2490.7,2490.6,2.05311815]
[1748856893192,3.21383355,2490.7,2490.6,3.25615581]
[1748856893789,4.01645355,2490.7,2490.6,2.45350581]
[1748856893982,5.30205355,2490.7,2490.6,2.45350581]
[1748856894182,5.37275144,2490.7,2490.6,2.45350581]
[1748856894582,5.37275144,2490.7,2490.6,3.25615581]
[1748856894786,4.08715144,2490.7,2490.6,3.25615581]
[1748856895093,4.08715144,2490.7,2490.6,3.92585581]
[1748856895294,4.01645355,2490.7,2490.6,3.92585581]
[1748856895799,4.01645355,2490.7,2490.6,3.12320581]
[1748856895987,4.01645355,2490.7,2490.6,3.92585581]
[1748856896290,4.01645355,2490.7,2490.6,1.47235]
[1748856896493,4.01645355,2490.7,2490.6,3.92768073]
[1748856896694,4.01645355,2490.7,2490.6,3.12503073]
[1748856896995,4.01645355,2490.7,2490.6,2.45533073]
[1748856898781,23.07845355,2490.7,2490.6,2.45533073]
[1748856899693,23.07845355,2490.7,2490.6,3.25798073]
[1748856900297,0.80265,2490.6,2490.5,2.400952]
[1748856900497,22.27583355,2490.7,2490.6,0.80265]
[1748856900793,22.27583355,2490.7,2490.6,3.25625947]
[1748856901394,19.06803355,2490.7,2490.6,3.25625947]
[1748856901896,0.00603355,2490.7,2490.6,3.25625947]
[1748856902096,0.00603355,2490.7,2490.6,6.858051]
[1748856902289,0.00603355,2490.7,2490.6,5.259759]
[1748856902494,0.70923355,2490.7,2490.6,5.259759]
[1748856902997,0.70923355,2490.7,2490.6,2.051959]
[1748856902998,1.51185355,2490.7,2490.6,2.051959]
[1748856903198,1.51185355,2490.7,2490.6,3.65656224]
[1748856903701,0.70923355,2490.7,2490.6,2.051959]
[1748856904202,1.51185355,2490.7,2490.6,3.65627947]
[1748856904402,2.84695355,2490.7,2490.6,2.85362947]
[1748856904896,2.84695355,2490.7,2490.6,2.452645]
[1748856905096,2.84695355,2490.7,2490.6,1.249309]
[1748856906501,2.91765144,2490.7,2490.6,1.249309]
[1748856906988,0.80265,2490.6,2490.5,2.00604385]
[1748856907194,2.17595,2490.6,2490.5,2.45170888]
[1748856907700,6.50795,2490.6,2490.5,2.45170888]
[1748856907894,6.50795,2490.6,2490.5,1.24834503]
[1748856908199,7.71194,2490.6,2490.1,2.80768432]
[1748856908405,0.80278,2490.2,2490.1,1.20336385]
[1748856908696,19.85878,2490.2,2490.1,1.20336385]
[1748856908997,21.88708,2490.2,2490.1,1.20336385]
[1748856909300,23.09131,2490.2,2489.7,1.20336385]
[1748856909499,0.80291,2489.8,2489.7,2.00630385]
[1748856909996,0.80289,2489.9,2489.7,3.25363632]
[1748856910196,0.80287,2489.9,2489.8,1.24733247]
[1748856910794,0.80287,2489.9,2489.8,2.05024247]
[1748856910993,0.80287,2489.9,2489.8,2.04714527]
[1748856911704,1.3733,2490.1,2489.9,0.80286]
[1748856911902,0.655,2490.2,2490.0,1.24423527]
[1748856912198,19.056,2490.2,2490.1,2.04650569]
[1748856912903,0.6705,2490.4,2490.1,4.12761616]
[1748856913202,19.055,2490.4,2490.2,3.75539497]
[1748856913390,1.9701,2490.6,2490.5,0.80268]
[1748856913595,21.0251,2490.6,2490.5,2.04637569]
[1748856913995,21.82775,2490.6,2490.5,1.24369569]
[1748856915002,0.80274,2490.4,2490.3,0.80274]
[1748856915204,0.80274,2490.4,2490.3,3.35680656]
[1748856915698,0.80274,2490.4,2490.3,1.24336656]
[1748856916497,0.80274,2490.4,2490.3,2.04610656]
[1748856916998,1.3697,2490.5,2490.4,0.80271]
[1748856917205,20.4227,2490.5,2490.4,3.24708032]
[1748856918205,0.6895,2490.6,2490.5,0.80268]
[1748856918397,19.7415,2490.6,2490.5,2.04604656]
[1748856918792,20.54417,2490.6,2490.5,0.80268]
[1748856918998,20.54417,2490.6,2490.5,2.04596204]
[1748856919297,20.54417,2490.6,2490.5,1.24328204]
[1748856919998,21.88157,2490.6,2490.5,1.24328204]
[1748856923006,21.88157,2490.6,2490.5,1.24337646]
[1748856923203,21.88157,2490.6,2490.2,1.20100526]
[1748856923510,0.80274,2490.3,2490.2,2.00378526]
[1748856923701,0.80274,2490.3,2490.2,3.24719595]
[1748856924803,0.80273,2490.4,2490.3,0.80274]
[1748856925005,0.80273,2490.4,2490.3,1.24341069]
[1748856926406,4.01053,2490.4,2490.3,1.24341069]
[1748856927307,0.80273,2490.4,2490.3,1.24341069]
[1748856928504,0.80281,2490.1,2490.0,5.61495047]
[1748856928808,0.80281,2490.1,2490.0,4.45127491]
[1748856929005,0.80281,2490.1,2490.0,5.25411491]
[1748856929202,0.80281,2490.1,2490.0,6.85843538]
[1748856929506,0.80281,2490.1,2490.0,6.85840538]
[1748856929907,0.80281,2490.1,2490.0,5.65242852]
[1748856930102,2.18831,2490.1,2490.0,5.65242852]
[1748856930305,2.18831,2490.1,2490.0,1.24347491]
[1748856931006,2.18831,2490.1,2490.0,1.24308958]
[1748856931605,0.80291,2489.8,2489.7,1.20127901]
[1748856931802,0.80291,2489.8,2489.7,2.44415662]
[1748856932203,0.80294,2489.7,2489.6,6.85492047]
[1748856932602,0.80294,2489.7,2489.6,2.25892047]
[1748856932805,0.80294,2489.7,2489.6,1.20108534]
[1748856933106,0.80297,2489.6,2489.5,1.20108534]
[1748856933308,0.803,2489.5,2489.4,2.80540581]
[1748856934002,0.803,2489.5,2489.4,4.04817206]
[1748856934202,0.803,2489.5,2489.4,2.84708672]
[1748856934499,2.1763,2489.5,2489.4,2.84708672]
[1748856934808,2.1763,2489.5,2489.4,1.24276625]
[1748856935006,2.1763,2489.5,2489.4,2.48526962]
[1748856935305,2.1763,2489.5,2489.4,1.24250337]
[1748856938309,0.80303,2489.4,2489.3,0.00603355]
[1748856938515,2.84683,2489.4,2489.3,1.24735582]
[1748856939209,2.84683,2489.4,2489.3,1.24730819]
[1748856941111,2.84683,2489.4,2489.3,0.00603355]
[1748856941612,21.88883,2489.4,2489.3,0.00603355]
[1748856943616,1.48413,2489.4,2489.3,0.00603355]
[1748856945216,2.80113,2489.4,2489.3,0.00603355]
[1748856946410,2.80113,2489.4,2488.7,2.39743801]
[1748856946411,3.2078,2488.3,2487.4,7.99146003]
[1748856946613,0.80391,2486.7,2486.6,5.59129723]
[1748856946816,24.40991,2486.7,2486.6,5.59129723]
[1748856947107,0.80391,2486.7,2486.6,5.59129723]
[1748856947305,24.66117636,2486.7,2486.6,5.59129723]
[1748856947511,24.66117636,2486.7,2486.2,1.3237]
[1748856947512,0.80403,2486.3,2486.2,1.3237]
[1748856947708,5.11503,2486.3,2486.2,1.9884552]
[1748856948015,0.80419,2485.8,2485.7,1.3237]
[1748856948216,7.5188,2485.8,2485.7,1.3237]
[1748856948416,7.5188,2485.8,2485.7,4.9095578]
[1748856949316,3.2078,2485.8,2485.7,4.9095578]
[1748856950520,4.012,2485.8,2485.7,4.9095578]
[1748856950719,3.2078,2485.8,2485.7,4.9095578]
[1748856951115,7.5208,2485.8,2485.7,4.9095578]
[1748856952122,8.32499,2485.8,2485.7,4.9095578]
[1748856952611,4.01199,2485.8,2485.7,4.9095578]
[1748856953114,8.32599,2485.8,2485.7,4.9095578]
[1748856954022,7.5218,2485.8,2484.8,2.01124]
[1748856954222,3.2078,2485.0,2482.4,2.76]
[1748856954523,3.2078,2483.3,2482.7,3.2078]
[1748856954713,3.2078,2483.3,2482.8,1.3961]
[1748856955119,3.21383355,2483.3,2483.2,0.80504]
[1748856955321,3.21383355,2483.3,2482.8,6.40213355]
[1748856955513,3.21383355,2483.3,2483.2,0.80504]
[1748856956023,3.21383355,2483.3,2483.2,5.80504]
[1748856957625,3.2078,2483.9,2483.8,0.80484]
[1748856957926,4.01261,2483.9,2483.7,0.80485]
[1748856958125,4.01261,2483.9,2483.8,1.2681]
[1748856959016,3.2078,2483.9,2483.8,1.2681]
[1748856959319,3.2078,2483.9,2483.8,2.07294]
[1748856959831,3.2078,2483.9,2483.8,1.2681]
[1748856960124,3.2078,2483.9,2483.8,2.07294]
[1748856960725,0.00603355,2484.1,2484.0,0.80478]
[1748856961118,0.00603355,2484.1,2484.0,5.80478]
[1748856961325,0.81080355,2484.1,2483.8,2.07292]
[1748856961633,3.2078,2483.9,2483.6,0.6753]
[1748856961922,3.2078,2483.9,2483.4,1.3329]
[1748856962131,3.2078,2483.6,2483.5,0.80492]
[1748856962627,3.2078,2483.6,2482.3,3.8776]
[1748856962822,0.80513,2482.9,2482.4,1.3329]
[1748856963520,2.16523,2482.9,2482.4,1.3329]
[1748856963719,2.16523,2482.9,2482.7,0.80519]
[1748856964130,2.16523,2482.9,2482.6,0.80521]
[1748856964330,2.16523,2482.9,2482.4,1.3329]
[1748856964517,1.3601,2482.9,2482.4,1.3329]
[1748856964832,2.16523,2482.9,2482.4,1.3329]
[1748856965126,1.3601,2482.9,2482.4,1.3329]
[1748856965317,2.16523,2482.9,2482.4,1.3329]
[1748856965516,2.16523,2482.9,2482.7,0.80517]
[1748856965724,2.16523,2482.9,2482.8,0.81120355]
[1748856966029,1.3601,2482.9,2482.8,0.81120355]
[1748856966420,2.16523,2482.9,2482.8,0.81120355]
[1748856966620,2.16523,2482.9,2482.8,0.00603355]
[1748856967224,1.3601,2482.9,2482.8,0.00603355]
[1748856967429,2.16523,2482.9,2482.8,0.00603355]
[1748856968031,1.3601,2482.9,2482.8,0.00603355]
[1748856968232,2.16523,2482.9,2482.8,0.00603355]
[1748856969527,1.3601,2482.9,2482.8,0.00603355]
[1748856969927,2.16523,2482.9,2482.8,0.00603355]
[1748856970129,21.88223,2482.9,2482.8,0.00603355]
[1748856971726,21.88223,2482.9,2481.2,3.2078]
[1748856971727,2.01294,2482.8,2481.2,3.2078]
[1748856972031,40.593,2483.1,2481.2,3.2078]
[1748856972032,3.2078,2481.8,2481.7,0.80552]
[1748856972328,3.2078,2482.4,2482.3,0.80533]
[1748856974736,3.2078,2482.4,2482.2,0.80534]
[1748856974737,4.0131,2482.4,2482.2,0.80534]
[1748856974938,3.2078,2482.4,2482.3,0.80533]
[1748856975237,3.2078,2482.4,2482.1,0.00603355]
[1748856975531,0.80533,2482.3,2482.1,0.81140355]
[1748856975924,3.2078,2482.4,2482.1,0.81140355]
[1748856976128,0.3409347,2482.3,2482.2,0.80536]
[1748856976534,4.0131,2482.4,2482.3,0.80533]
[1748856976730,0.80536,2482.2,2482.1,0.00603355]
[1748856976929,1.14630005,2482.2,2482.1,0.00603355]
[1748856977133,1.14627324,2482.2,2482.1,0.81142355]
[1748856977334,0.80536,2482.2,2482.1,0.81142355]
[1748856977532,0.80536,2482.2,2482.1,0.00603355]
[1748856977533,1.1462628,2482.2,2482.1,0.00603355]
[1748856977739,0.80536,2482.2,2482.1,0.00603355]
[1748856978041,0.80536,2482.2,2482.1,0.81142355]
[1748856978341,0.80536,2482.2,2482.1,0.00603355]
[1748856979435,0.80555,2481.6,2481.5,0.80557]
[1748856979740,0.80555,2481.6,2481.3,0.6829]
[1748856979741,4.01334,2481.7,2481.6,0.80555]
[1748856979942,3.2078,2481.7,2481.6,0.80555]
[1748856980332,3.55036505,2481.7,2481.6,0.80555]
[1748856980528,3.55038166,2481.7,2481.6,0.80555]
[1748856980830,3.55007878,2481.7,2481.6,0.80555]
[1748856981034,3.2078,2481.7,2481.6,0.80555]
[1748856981234,3.55121341,2481.7,2481.6,0.80555]
[1748856981429,19.743,2482.1,2482.0,0.80543]
[1748856981430,4.0132,2482.1,2482.0,0.80543]
[1748856981630,3.2078,2482.1,2482.0,0.80543]
[1748856981831,3.55013091,2482.1,2482.0,0.50324443]
[1748856982233,4.01312,2482.4,2482.3,0.80533]
[1748856982433,4.35543823,2482.4,2482.3,0.80533]
[1748856982630,4.83991823,2482.4,2482.3,0.80533]
[1748856982935,4.4976,2482.4,2482.3,0.80533]
[1748856983137,5.50696546,2482.4,2482.3,0.80533]
[1748856983343,5.83994208,2482.4,2482.3,0.80533]
[1748856983729,4.55014208,2482.4,2482.3,0.80533]
[1748856984142,5.82504208,2482.4,2482.3,0.80533]
[1748856984338,5.80965192,2482.4,2482.3,0.80533]
[1748856984739,6.29736546,2482.4,2482.3,0.80533]
[1748856985140,6.25772583,2482.4,2482.3,0.80533]
[1748856985942,5.45242583,2482.4,2482.3,0.80533]
[1748856986536,6.25771583,2482.4,2482.3,0.80533]
[1748856987141,5.28799,2482.4,2482.3,0.80533]
[1748856987448,6.25836623,2482.4,2482.3,0.80533]
[1748856988844,6.23760416,2482.4,2482.3,0.80533]
[1748856989141,5.28799,2482.4,2482.3,0.80533]
[1748856989348,6.23819735,2482.4,2482.3,0.80533]
[1748856989650,0.80536,2482.3,2482.2,0.80533]
[1748856989844,0.95020735,2482.3,2481.8,3.2078]
[1748856990138,0.80552,2481.8,2481.7,0.80549]
[1748856990445,0.80555,2481.7,2481.6,0.80554]
[1748856991145,2.19475,2481.7,2481.6,0.80555]
[1748856991352,1.3892,2481.7,2481.6,0.80555]
[1748856991742,3.2078,2481.8,2481.7,0.80552]
[1748856991942,4.15920601,2481.8,2481.7,0.80552]
[1748856992445,0.95140601,2481.8,2481.7,0.80552]
[1748856992849,4.01322,2482.1,2482.0,0.80542]
[1748856993044,0.80546,2482.0,2481.9,0.80544]
[1748856993245,0.80549,2481.9,2481.8,0.80547]
[1748856993453,0.80555,2481.6,2481.5,2.16314]
[1748856993649,0.80554,2481.7,2481.6,0.80552]
[1748856993846,0.95234127,2481.7,2481.5,1.3576]
[1748856994048,2.15075,2481.7,2481.6,0.80553]
[1748856994248,3.10303693,2481.7,2481.6,0.80553]
[1748856994448,0.80555,2481.6,2481.5,2.16318]
[1748856994747,1.3452,2481.7,2481.4,3.55e-06]
[1748856994942,8.41539592,2481.5,2481.4,3.55e-06]
[1748856995342,14.36768356,2481.5,2481.4,3.55e-06]
[1748856996348,0.80601,2480.2,2480.1,2.39811677]
[1748856996846,4.01378,2480.3,2480.1,3.20415677]
[1748856997153,3.2078,2480.3,2480.0,2.39811677]
[1748856997344,3.2078,2480.3,2480.1,0.80604]
[1748856997345,2.21522107,2480.2,2480.1,0.80604]
[1748856997549,3.02124107,2480.2,2480.0,0.00604607]
[1748856997748,0.80604,2480.1,2480.0,0.00604607]
[1748856997953,3.02130697,2480.1,2480.0,0.00604607]
[1748856998353,2.07194,2480.1,2480.0,0.00604607]
[1748856998753,1.2659,2480.1,2480.0,0.00604607]
[1748856999051,1.2659,2480.1,2480.0,0.81211607]
[1748856999256,1.2659,2480.1,2480.0,0.00604607]
[1748856999955,1.2659,2480.1,2480.0,0.81211607]
[1748857000157,4.4977,2480.3,2480.0,0.00604607]
[1748857000353,3.2078,2480.3,2480.2,0.80601]
[1748857001357,3.2078,2480.3,2480.1,1.3809]
[1748857001560,3.2078,2480.3,2480.2,0.80601]
[1748857003556,3.2078,2481.0,2480.4,2.01485]
[1748857003756,3.2078,2481.0,2480.9,0.80578]
[1748857004758,1.40434607,2481.2,2481.0,0.80575]
[1748857004959,0.80571,2481.1,2481.0,0.80575]
[1748857005153,1.40434607,2481.2,2481.1,0.80571]
[1748857005457,0.00604607,2481.2,2481.1,0.80571]
[1748857006956,0.00604607,2481.2,2481.1,5.80571]
[1748857007158,1.2719,2481.6,2481.5,0.80558]
[1748857007458,2.07745,2481.6,2481.5,0.80558]
[1748857007645,3.8805,2482.0,2481.5,0.80558]
[1748857007646,3.8805,2482.0,2481.8,0.80546]
[1748857008058,1.3882,2481.9,2481.7,0.8055]
[1748857008358,1.3882,2481.9,2481.8,0.80549]
[1748857008953,0.00604607,2482.0,2481.8,0.80547]
[1748857009262,0.80546,2481.9,2481.8,0.80547]
[1748857009457,0.81148607,2482.0,2481.8,0.80547]
[1748857010259,0.80549,2481.8,2481.7,0.80552]
[1748857010458,1.3991,2481.9,2481.8,0.80549]
[1748857010661,0.00604607,2482.0,2481.9,0.80545]
[1748857011162,0.00604607,2482.0,2481.9,2.09855]
[1748857011962,0.00604607,2482.0,2481.9,10.00935]
[1748857012551,0.00604607,2482.0,2481.9,6.80155]
[1748857013365,0.00604607,2482.0,2481.9,10.00935]
[1748857014071,0.00604607,2482.0,2481.9,15.00935]
[1748857014359,1.3991,2482.6,2482.5,0.80526]
[1748857014553,1.3991,2482.6,2482.4,0.80527]
[1748857014753,1.3991,2482.6,2482.5,0.80526]
[1748857014959,0.34788061,2482.7,2482.6,0.80523]
[1748857019360,0.34788061,2482.7,2482.6,2.10613]
[1748857019562,0.34788061,2482.7,2482.6,6.73913]
[1748857020358,0.34788061,2482.7,2482.6,6.75084288]
[1748857021464,0.34788061,2482.7,2482.6,0.01171288]
[1748857021465,1.15307061,2482.7,2482.6,0.01171288]
[1748857021669,5.76087061,2482.7,2482.6,0.01171288]
[1748857022062,0.80541,2482.1,2482.0,0.80539]
[1748857022263,0.80538,2482.2,2482.1,0.80535]
[1748857022462,1.4,2482.3,2482.2,0.80536]
[1748857022864,2.20532,2482.3,2482.2,0.80536]
[1748857023165,3.41333,2482.3,2481.8,7.8408]
[1748857023375,3.41333,2482.3,2482.0,0.80539]
[1748857023376,0.80541,2482.1,2482.0,0.80539]
[1748857024171,0.80541,2482.1,2481.6,2.01991607]
[1748857024172,8.2078,2482.1,2481.6,0.00604607]
[1748857024367,4.01332,2481.7,2481.6,0.00604607]
[1748857025473,1.3126,2481.8,2481.7,0.80552]
[1748857026465,3.2078,2482.0,2481.9,0.80545]
[1748857027366,4.01322,2482.0,2481.9,0.80545]
[1748857027565,4.4866,2482.0,2481.9,0.80545]
[1748857028268,5.29202,2482.0,2481.9,0.80545]
[1748857028466,4.4866,2482.0,2481.6,0.00604607]
[1748857028661,5.29204,2482.0,2481.9,0.80545]
[1748857028869,5.29203,2482.0,2481.9,0.80545]
[1748857029061,4.4866,2482.0,2481.6,0.00604607]
[1748857029265,5.29205,2482.0,2481.9,0.80545]
[1748857029467,5.29205,2482.0,2481.6,0.00604607]
[1748857029664,5.29205,2482.0,2481.8,0.80546]
[1748857030066,4.4866,2482.0,2481.9,0.80545]
[1748857030971,5.29205,2482.0,2481.8,0.80547]
[1748857031173,0.8055,2481.8,2481.6,0.00604607]
[1748857031372,4.5538,2481.7,2481.6,0.81159607]
[1748857031870,3.2078,2482.0,2481.9,0.80545]
[1748857032672,3.9096,2482.6,2481.9,9.02725]
[1748857032972,3.9096,2482.6,2482.4,0.80529]
[1748857032973,1.2721,2482.5,2482.4,0.80529]
[1748857033675,2.07736,2482.5,2482.4,0.80529]
[1748857034071,1.2721,2482.5,2482.4,0.80529]
[1748857034469,2.07737,2482.5,2482.4,0.80529]
[1748857034680,2.07736,2482.5,2482.4,0.80529]
[1748857034971,1.2721,2482.5,2482.4,0.80529]
[1748857035175,2.07736,2482.5,2482.4,0.80529]
[1748857035368,1.2721,2482.5,2482.0,0.6818]
[1748857035571,1.2721,2482.5,2482.2,0.80534]
[1748857035572,4.01313,2482.3,2482.2,0.80534]
[1748857036172,3.2078,2482.3,2482.2,0.80534]
[1748857036577,4.523,2482.3,2482.2,0.80534]
[1748857037673,5.2248,2482.6,2482.5,0.80526]
[1748857038073,5.2248,2482.6,2482.1,3.41083]
[1748857038074,0.80527,2482.5,2482.4,0.80527]
[1748857038275,2.16437,2482.5,2482.4,0.80527]
[1748857038481,1.3591,2482.5,2482.4,0.80527]
[1748857038677,2.16436,2482.5,2482.4,0.80527]
[1748857039478,0.80534,2482.3,2482.2,0.80534]
[1748857041680,0.80537,2482.2,2482.1,0.80536]
[1748857042283,2.11847,2482.2,2482.1,0.80536]
[1748857042582,1.3131,2482.2,2482.1,0.80536]
[1748857043684,3.2078,2482.3,2482.2,0.80536]
[1748857043878,3.9096,2482.6,2482.5,0.80526]
[1748857044176,4.71483,2482.6,2482.5,0.80526]
[1748857044376,6.05803,2482.6,2482.5,0.80526]
[1748857044573,5.2528,2482.6,2482.5,0.80526]
[1748857044778,5.2528,2482.6,2482.4,0.80527]
[1748857044985,0.80532,2482.4,2482.3,0.8053]
[1748857045983,0.80536,2482.3,2482.2,0.80534]
[1748857046577,0.80532,2482.4,2482.3,0.8053]
[1748857047082,7.2659,2482.6,2482.0,7.93439]
[1748857047083,25.58605,2482.6,2482.5,0.80526]
[1748857047273,5.2528,2482.6,2482.5,0.80526]
[1748857047477,6.05803,2482.6,2482.5,0.80526]
[1748857048880,5.2528,2482.6,2482.5,0.80526]
[1748857049084,4.551,2482.6,2482.5,0.80526]
[1748857049489,3.2078,2482.6,2482.5,0.80526]
[1748857050577,3.2078,2482.6,2482.5,2.09456]
[1748857052581,3.2078,2482.6,2482.5,5.39726]
[1748857053184,3.2078,2482.6,2482.5,0.80526]
[1748857053383,3.2078,2482.6,2482.3,5.68145376]
[1748857053384,3.2078,2482.6,2482.3,1.20361535]
[1748857053583,0.80534,2482.3,2482.1,2.40908064]
[1748857053790,3.2078,2482.2,2482.1,3.21447064]
[1748857053988,4.5688,2482.5,2482.0,2.40908064]
[1748857054189,5.37407,2482.5,2482.4,0.80529]
[1748857054681,4.5688,2482.5,2482.4,0.80529]
[1748857054883,5.37406,2482.5,2482.4,0.80529]
[1748857055883,4.5688,2482.5,2482.4,0.80529]
[1748857056089,1.361,2482.5,2482.4,0.80529]
[1748857056584,0.6701,2482.6,2482.5,0.80526]
[1748857057190,0.34788061,2482.7,2482.6,0.80523]
[1748857059382,0.34788061,2482.7,2482.6,5.39723]
[1748857059885,20.23606,2483.2,2482.6,5.39723]
[1748857059886,2.38654459,2483.5,2482.6,9.592]
[1748857060083,1.398,2483.5,2483.4,0.80497]
[1748857060284,2.20294,2483.5,2483.4,0.80497]
[1748857061080,1.398,2483.5,2483.2,0.00604607]
[1748857061286,0.805,2483.3,2483.2,0.81106607]
[1748857061481,0.80497,2483.4,2483.3,0.80497]
[1748857062391,1.398,2483.5,2483.4,0.80497]
[1748857062693,1.398,2483.5,2483.2,0.00604607]
[1748857062894,0.80499,2483.4,2483.3,0.80498]
[1748857065089,0.805,2483.3,2483.2,0.81105607]
[1748857065393,1.3899,2483.3,2483.2,0.81105607]
[1748857066383,3.2078,2483.6,2483.5,0.80494]
[1748857066993,4.5977,2483.6,2483.5,0.80494]
[1748857068091,0.00602877,2483.7,2483.6,0.8049]
[1748857068390,8.77e-06,2483.7,2483.6,4.0127]
[1748857068591,8.77e-06,2483.7,2483.6,9.0127]
[1748857068986,8.77e-06,2483.7,2483.6,10.3795]
[1748857072386,8.77e-06,2483.7,2483.6,9.9695]
[1748857075001,8.77e-06,2483.7,2483.6,9.9685]
[1748857075697,8.77e-06,2483.7,2483.6,8.6017]
[1748857075897,0.80487877,2483.7,2483.6,4.0127]
[1748857076097,2.10967877,2483.7,2483.6,5.2829]
[1748857076597,1.30480877,2483.7,2483.6,5.2829]
[1748857076793,1.30480877,2483.7,2483.5,0.80492]
[1748857076994,1.30480877,2483.7,2483.6,0.8049]
[1748857077498,2.10967877,2483.7,2483.6,0.8049]
[1748857077801,1.30480877,2483.7,2483.6,0.8049]
[1748857078200,8.77e-06,2483.7,2483.6,0.8049]
[1748857078501,8.77e-06,2483.7,2483.6,2.1966]
[1748857078801,8.77e-06,2483.7,2483.6,0.8049]
[1748857079195,2.15257877,2483.7,2483.6,0.8049]
[1748857079601,1.34770877,2483.7,2483.6,0.8049]
[1748857080800,2.15257877,2483.7,2483.6,0.8049]
[1748857081196,1.34770877,2483.7,2483.6,0.8049]
[1748857081398,2.15257877,2483.7,2483.6,0.8049]
[1748857081598,0.8049,2483.6,2483.5,8.49071]
[1748857081801,2.0902,2483.6,2483.5,8.49071]
[1748857081997,2.0902,2483.6,2483.5,4.01271]
[1748857083000,8.77e-06,2483.7,2483.6,0.8049]
[1748857083804,8.77e-06,2483.7,2483.6,5.8049]
[1748857085408,8.77e-06,2483.7,2483.6,5.2829]
[1748857085908,8.77e-06,2483.7,2483.6,0.8049]
[1748857086210,1.34050877,2483.7,2483.6,5.2829]
[1748857086604,1.34050877,2483.7,2483.6,0.8049]
[1748857086907,0.8049,2483.6,2483.5,4.01272]
[1748857087109,2.14539877,2483.7,2483.6,0.8049]
[1748857087315,0.8049,2483.6,2483.5,4.01271]
[1748857087611,2.115,2483.6,2483.5,4.01271]
[1748857088109,8.77e-06,2483.7,2483.6,0.8049]
[1748857088808,8.77e-06,2483.7,2483.6,5.2829]
[1748857091415,8.77e-06,2483.7,2483.6,6.6434]
[1748857092806,8.77e-06,2483.7,2483.6,5.2829]
[1748857093015,0.80487877,2483.7,2483.6,0.8049]
[1748857093317,2.14957877,2483.7,2483.6,0.8049]
[1748857094213,0.80491,2483.6,2483.5,4.01271]
[1748857094414,0.80496,2483.5,2483.4,0.80497]
[1748857094610,1.9904,2483.6,2483.5,0.80494]
[1748857095810,8.77e-06,2483.7,2483.6,0.8049]
[1748857096319,8.77e-06,2483.7,2483.6,5.21754348]
[1748857096617,8.77e-06,2483.7,2483.6,9.0127]
[1748857096822,8.77e-06,2483.7,2483.6,13.4907]
[1748857097024,8.77e-06,2483.7,2483.6,9.7825]
[1748857097326,8.77e-06,2483.7,2483.6,12.19158064]
[1748857097923,8.77e-06,2483.7,2483.6,17.19158064]
[1748857099223,8.77e-06,2483.7,2483.6,14.7825]
[1748857099622,3.68224459,2484.8,2484.7,0.80455]
[1748857099826,1.2957,2484.8,2484.7,0.80455]
[1748857100027,2.10022,2484.8,2484.7,0.80455]
[1748857101132,1.2957,2484.8,2484.7,0.80455]
[1748857102226,2.10022,2484.8,2484.7,0.80455]
[1748857102627,0.80455,2484.7,2484.5,0.00604607]
[1748857102926,1.341,2484.6,2484.5,0.81065607]
[1748857104524,0.8045,2484.9,2484.5,0.00604607]
[1748857104729,2.128,2484.9,2484.8,0.80449]
[1748857105525,0.80453,2484.8,2484.7,0.80452]
[1748857105726,2.12803,2484.8,2484.7,0.80452]
[1748857106834,1.3235,2484.8,2484.7,0.80452]
[1748857107225,2.12802,2484.8,2484.7,0.80452]
[1748857107622,0.80458,2484.6,2484.5,0.00604607]
[1748857108230,2.92028,2484.6,2484.5,0.00604607]
[1748857108527,7.92028,2484.6,2484.5,0.00604607]
[1748857109823,2.1157,2484.6,2484.5,0.00604607]
[1748857110137,2.1157,2484.6,2484.5,0.81065607]
[1748857110535,2.92028,2484.6,2484.5,0.00604607]
[1748857112137,2.1157,2484.6,2484.5,0.81065607]
[1748857112331,5.59434459,2485.0,2484.8,0.80448]
[1748857112527,1.3072,2484.9,2484.8,0.80448]
[1748857114140,2.11168,2484.9,2484.8,0.80448]
[1748857115334,1.3072,2484.9,2484.8,0.80448]
[1748857116143,0.7308,2485.1,2484.9,0.80447]
[1748857116343,1.3457,2485.0,2484.9,0.80447]
[1748857117742,2.15018,2485.0,2484.9,0.80447]
[1748857118142,1.3457,2485.0,2484.9,0.80447]